bitfinex/quotes_SOLUSD_20250518
["timestamp","ask_amount","ask_price","bid_price","bid_amount"]
[1747605022195,5.9326056,168.56,168.5,5.9347181]
[1747605030967,5.9326056,168.56,168.49,24.58463568]
[1747605036891,5.9326056,168.56,168.48,7.54113222]
[1747605037094,20.98,168.59,168.49,19.04932726]
[1747605037596,20.98,168.59,168.5,26.0]
[1747605038289,20.98,168.59,168.52,18.64964886]
[1747605038476,5.93084633,168.61,168.53,23.41823152]
[1747605040002,5.93084633,168.61,168.54,5.9333096]
[1747605043405,16.99771295,168.61,168.54,5.9333096]
[1747605050108,16.99771295,168.61,168.53,29.35166486]
[1747605054917,10.9,168.63,168.54,19.04855645]
[1747605055215,67.94,168.64,168.54,19.04855645]
[1747605055410,52.90991706,168.64,168.54,19.04855645]
[1747605056417,52.90991706,168.64,168.56,18.64964886]
[1747605057421,52.90991706,168.64,168.57,5.93225366]
[1747605064027,63.97678368,168.64,168.57,5.93225366]
[1747605064332,20.98,168.64,168.57,5.93225366]
[1747605066027,26.90983446,168.64,168.57,5.93225366]
[1747605068222,20.98,168.64,168.57,5.93225366]
[1747605068614,5.92955559,168.65,168.57,5.93225366]
[1747605076033,18.47869314,168.66,168.57,5.93225366]
[1747605077533,7.41182652,168.66,168.57,5.93225366]
[1747605077833,18.47869314,168.66,168.57,5.93225366]
[1747605079841,5.92979127,168.64,168.57,5.93225366]
[1747605080028,20.01016464,168.64,168.55,5.93295757]
[1747605080212,11.06686662,168.62,168.55,5.93295757]
[1747605080529,12.54976972,168.61,168.53,21.77403152]
[1747605081839,5.9311981,168.6,168.53,27.70749563]
[1747605089616,5.9311981,168.6,168.53,21.77403152]
[1747605089817,1.4832065,168.59,168.53,21.77403152]
[1747605090242,11.06686662,168.58,168.53,21.77403152]
[1747605090443,1.48339471,168.57,168.53,21.77403152]
[1747605091531,12.5503447,168.58,168.53,21.77403152]
[1747605092166,5.93225366,168.57,168.53,21.77403152]
[1747605093153,1.48347032,168.56,168.53,21.77403152]
[1747605093527,12.55033694,168.56,168.53,21.77403152]
[1747605094258,16.99982419,168.55,168.53,21.77403152]
[1747605095338,16.99982419,168.55,168.46,5.93606957]
[1747605095540,12.55064316,168.54,168.46,5.93606957]
[1747605096134,5.93366166,168.53,168.45,5.93647966]
[1747605096329,11.06686662,168.48,168.42,0.40038815]
[1747605096549,26.0,168.42,168.31,12.60753305]
[1747605096852,12.65956662,168.4,168.31,12.60753305]
[1747605097351,37.60631548,168.4,168.31,12.60753305]
[1747605097650,45.93990701,168.4,168.31,12.60753305]
[1747605098152,51.87814929,168.4,168.31,12.60753305]
[1747605098355,105.36942971,168.4,168.31,12.60753305]
[1747605098555,26.0,168.36,168.31,12.60753305]
[1747605098743,43.2855902,168.35,168.31,12.60753305]
[1747605098950,11.06686662,168.34,168.23,31.94422161]
[1747605099151,11.06686662,168.32,168.22,13.65495569]
[1747605099345,12.55264019,168.31,168.22,13.65495569]
[1747605099553,1.48577357,168.31,168.22,6.1508]
[1747605099854,18.81617381,168.31,168.22,6.1508]
[1747605100057,18.81617381,168.31,168.22,12.09538558]
[1747605100556,7.42728992,168.31,168.22,12.09538558]
[1747605100862,17.33040024,168.3,168.22,12.09538558]
[1747605101038,18.81628512,168.29,168.22,12.09538558]
[1747605101235,60.61628512,168.29,168.21,5.94490176]
[1747605101947,60.61628512,168.29,168.19,47.51133323]
[1747605101948,17.33040024,168.27,168.19,27.4566426]
[1747605102264,18.81659171,168.26,168.19,5.94530937]
[1747605102444,24.75978774,168.26,168.18,5.94601022]
[1747605103045,17.33040024,168.25,168.18,5.94601022]
[1747605103248,18.81677888,168.24,168.17,5.94634398]
[1747605103561,70.05040024,168.23,168.15,5.94707106]
[1747605103746,1.48667787,168.22,168.15,5.94707106]
[1747605103948,18.81707811,168.22,168.15,5.94707106]
[1747605104557,17.33040024,168.21,168.14,5.94742476]
[1747605104859,17.33040024,168.18,168.1,5.94883997]
[1747605105064,22.38704248,168.17,168.1,5.94883997]
[1747605105268,60.63744272,168.17,168.07,5.94990182]
[1747605105434,17.33040024,168.16,168.07,5.94990182]
[1747605105763,1.48719442,168.15,168.07,5.94990182]
[1747605106166,18.81759466,168.15,168.07,5.94990182]
[1747605106343,17.33040024,168.14,168.07,5.94990182]
[1747605106546,18.81769679,168.13,168.05,5.95060993]
[1747605108863,17.33040024,168.12,168.05,5.95060993]
[1747605109061,43.34748811,168.11,168.05,5.95060993]
[1747605110170,43.34748811,168.11,168.04,18.64964886]
[1747605111179,60.67788835,168.11,168.03,20.82961375]
[1747605111466,43.34748811,168.11,168.04,18.64964886]
[1747605112170,43.34748811,168.11,168.05,5.95060993]
[1747605114371,43.34748811,168.11,168.03,20.82961375]
[1747605116254,52.28562827,168.11,168.02,5.95167241]
[1747605116454,69.61602851,168.11,168.02,5.95167241]
[1747605116661,17.33040024,168.1,168.02,5.95167241]
[1747605116869,1.48778709,168.09,168.02,5.95167241]
[1747605117574,26.0,168.08,167.94,44.80896165]
[1747605117761,27.48816064,168.07,167.95,5.95415302]
[1747605118278,17.33040024,168.05,167.95,5.95415302]
[1747605118488,25.84816666,168.04,167.96,18.64964886]
[1747605118649,49.56816666,168.04,167.96,18.64964886]
[1747605118970,48.08,168.04,167.96,18.64964886]
[1747605119153,1.48816495,168.06,167.96,18.64964886]
[1747605119475,50.3,168.07,167.96,44.64964886]
[1747605119660,69.11828229,168.07,167.96,44.64964886]
[1747605120974,69.11828229,168.07,167.97,5.95344406]
[1747605121155,17.33040024,168.06,167.97,5.95344406]
[1747605121364,1.48798841,168.05,167.98,18.64964886]
[1747605122259,1.48798841,168.05,167.99,5.95273528]
[1747605123177,7.43861037,168.05,167.99,5.95273528]
[1747605123364,7.43861037,168.05,167.97,5.95312666]
[1747605123365,24.76901061,168.05,167.97,5.95312666]
[1747605123957,17.33040024,168.04,167.97,5.95312666]
[1747605124159,1.48824651,168.03,167.97,5.95312666]
[1747605125254,7.43965437,168.03,167.95,18.64964886]
[1747605126675,7.43965437,168.03,167.95,5.95415302]
[1747605126676,24.77005461,168.03,167.95,5.95415302]
[1747605127785,5.95202666,168.01,167.95,5.95415302]
[1747605127985,25.52844987,168.0,167.95,5.95415302]
[1747605128157,25.52844987,168.0,167.94,39.57519532]
[1747605129270,25.52844987,168.0,167.94,33.62074577]
[1747605129670,31.48090776,168.0,167.94,33.62074577]
[1747605130063,31.48090776,168.0,167.94,39.57516738]
[1747605131382,31.48090776,168.0,167.94,33.62074577]
[1747605131698,31.48090776,168.0,167.9,6.5044]
[1747605131870,17.33040024,167.98,167.9,6.5044]
[1747605132068,1.48892419,167.97,167.9,6.5044]
[1747605132300,18.81932443,167.97,167.9,6.5044]
[1747605132472,18.81932443,167.97,167.89,5.95628089]
[1747605133073,1.48892419,167.97,167.89,5.95628089]
[1747605133960,1.48892419,167.97,167.9,18.64964886]
[1747605135891,18.81932443,167.97,167.9,18.64964886]
[1747605136067,18.81932443,167.97,167.9,24.60541609]
[1747605136262,1.48892419,167.97,167.9,24.60541609]
[1747605139685,33.44239986,167.97,167.88,5.95656977]
[1747605139861,1.6632,167.96,167.87,18.64964886]
[1747605140062,1.6632,167.96,167.81,0.41053222]
[1747605140063,26.0,167.93,167.78,0.41075848]
[1747605140270,26.0,167.89,167.78,0.41075848]
[1747605140469,17.33040024,167.88,167.76,14.90165616]
[1747605140770,26.0,167.89,167.75,5.96125186]
[1747605141072,27.48954551,167.88,167.75,31.96125186]
[1747605141288,27.48954551,167.88,167.76,18.64964886]
[1747605141467,30.46368797,167.88,167.76,18.64964886]
[1747605141671,17.33040024,167.86,167.76,18.64964886]
[1747605141874,5.95699052,167.87,167.76,24.61030162]
[1747605142183,26.0,167.81,167.73,51.8664008]
[1747605142376,44.8205458,167.81,167.73,51.8664008]
[1747605142575,26.0,167.8,167.73,51.8664008]
[1747605142785,18.82076034,167.79,167.73,51.8664008]
[1747605143301,17.33040024,167.78,167.68,12.17233043]
[1747605143471,1.49058812,167.77,167.68,6.2088]
[1747605143671,1.49058812,167.77,167.59,47.61700868]
[1747605143672,26.0,167.73,167.61,7.7118]
[1747605143890,26.0,167.71,167.61,13.67803113]
[1747605144084,17.33040024,167.69,167.56,6.211]
[1747605144397,17.33040024,167.67,167.56,12.17901145]
[1747605144696,1.49151075,167.66,167.58,18.64964886]
[1747605144886,26.0,167.67,167.56,12.17901145]
[1747605145090,1.49157015,167.66,167.56,12.17901145]
[1747605145410,18.82197039,167.66,167.56,12.17901145]
[1747605145694,26.0,167.63,167.55,1.5008]
[1747605145899,1.49182192,167.62,167.53,40.14383976]
[1747605146100,1.49182192,167.62,167.53,5.96895383]
[1747605146402,27.49182192,167.62,167.51,5.96967532]
[1747605146700,27.49182192,167.62,167.49,5.97027812]
[1747605147111,27.94981808,167.57,167.49,5.97027812]
[1747605147280,27.94981808,167.56,167.49,5.97027812]
[1747605147480,27.94981808,167.55,167.46,26.0]
[1747605147682,1.49244238,167.54,167.43,20.90410163]
[1747605147884,27.49244238,167.54,167.42,5.97268259]
[1747605148092,26.0,167.46,167.42,5.97268259]
[1747605148294,303.9,167.45,167.12,29.91862134]
[1747605148497,26.0,167.37,167.15,1.5008]
[1747605148814,29.44410581,167.36,167.16,0.42139135]
[1747605148981,26.0,167.33,167.16,10.42139135]
[1747605149180,1.49435796,167.39,167.16,10.42139135]
[1747605149413,27.94981808,167.38,167.17,50.84644372]
[1747605149614,1.49402175,167.39,167.2,26.0]
[1747605149919,1.49402175,167.39,167.19,0.42100616]
[1747605149920,26.0,167.35,167.19,0.42100616]
[1747605150074,26.0,167.37,167.2,26.0]
[1747605150278,1.49405121,167.36,167.2,26.0]
[1747605150675,26.0,167.35,167.21,0.42094423]
[1747605151090,1.4943241,167.34,167.21,0.42094423]
[1747605151393,1.4943241,167.34,167.21,5.98050355]
[1747605151796,27.94981808,167.33,167.21,5.98050355]
[1747605152105,1.49477397,167.32,167.21,31.98050355]
[1747605152277,1.49477397,167.32,167.24,26.0]
[1747605152481,27.94981808,167.34,167.21,20.93176244]
[1747605152693,26.0,167.31,167.21,20.93176244]
[1747605153297,1.4947381,167.33,167.21,20.93176244]
[1747605153501,1.49452422,167.36,167.25,5.97907324]
[1747605153806,27.94981808,167.39,167.28,26.0]
[1747605153996,1.49412356,167.38,167.28,26.0]
[1747605154199,67.51156235,167.45,167.28,26.0]
[1747605154200,1.49409723,167.4,167.28,26.0]
[1747605154603,1.49383843,167.42,167.29,0.42049274]
[1747605154792,1.49367861,167.43,167.29,26.42049274]
[1747605155002,1.49357222,167.44,167.29,0.42049274]
[1747605155181,67.51156235,167.45,167.29,7.04249274]
[1747605155379,67.51156235,167.45,167.3,26.0]
[1747605155581,67.51156235,167.45,167.34,26.0]
[1747605155804,67.51156235,167.45,167.35,26.0]
[1747605156007,67.51156235,167.45,167.36,0.41930401]
[1747605156178,1.49324406,167.51,167.36,0.41930401]
[1747605156379,68.4680452,167.5,167.36,0.41930401]
[1747605156580,1.49324406,167.51,167.36,0.41930401]
[1747605156792,43.96128926,167.51,167.36,0.41930401]
[1747605157609,43.96128926,167.51,167.38,26.0]
[1747605158296,42.4680452,167.5,167.38,26.0]
[1747605158493,1.49324406,167.51,167.38,26.0]
[1747605159102,42.4680452,167.5,167.38,26.0]
[1747605159395,1.49304661,167.49,167.38,26.0]
[1747605159708,43.96109181,167.5,167.39,20.90925383]
[1747605159897,1.49304661,167.5,167.39,20.90925383]
[1747605160608,43.96109181,167.5,167.39,20.90925383]
[1747605161202,1.49304661,167.5,167.39,20.90925383]
[1747605161400,26.0,167.52,167.39,20.90925383]
[1747605161401,42.4680452,167.48,167.39,20.90925383]
[1747605161803,43.96110624,167.47,167.39,20.90925383]
[1747605162106,1.49306104,167.47,167.39,20.90925383]
[1747605162495,42.4680452,167.49,167.39,20.90925383]
[1747605162698,1.49320373,167.48,167.43,42.46732808]
[1747605162906,1.49319578,167.51,167.47,42.46732808]
[1747605163826,1.49319578,167.51,167.46,42.46732808]
[1747605164407,1.49319578,167.51,167.47,42.46732808]
[1747605164932,1.49282581,167.53,167.49,42.46732808]
[1747605165133,1.49262837,167.55,167.5,42.46732808]
[1747605165709,43.95995645,167.55,167.5,48.43718084]
[1747605166111,42.46732808,167.54,167.5,5.96985276]
[1747605166431,1.49256864,167.54,167.5,5.96985276]
[1747605167152,1.49251198,167.55,167.51,42.46732808]
[1747605167447,1.49241964,167.56,167.53,42.46732808]
[1747605167630,1.49241964,167.58,167.5,5.96985276]
[1747605167804,1.49223158,167.59,167.54,48.43605196]
[1747605168005,1.49223158,167.59,167.55,42.46732808]
[1747605168427,1.49207619,167.6,167.55,42.46732808]
[1747605168835,1.49207619,167.6,167.56,42.46732808]
[1747605169005,43.95927499,167.62,167.57,42.46732808]
[1747605169207,69.95927499,167.62,167.57,42.46732808]
[1747605169430,69.95927499,167.62,167.56,42.46732808]
[1747605169632,1.49194691,167.62,167.56,42.46732808]
[1747605169813,1.49194691,167.62,167.57,48.43472687]
[1747605170013,1.49194691,167.62,167.57,5.96739879]
[1747605170236,43.95911483,167.64,167.52,0.41638938]
[1747605170435,43.95911483,167.64,167.58,42.46732808]
[1747605171137,43.95911483,167.64,167.59,42.46732808]
[1747605171138,1.49178675,167.64,167.59,42.46732808]
[1747605171323,26.0,167.64,167.53,20.89178057]
[1747605171522,43.95891808,167.65,167.59,42.46732808]
[1747605171726,69.95891808,167.65,167.59,42.46732808]
[1747605171925,27.49159,167.65,167.6,42.46732808]
[1747605172124,1.49159,167.65,167.6,42.46732808]
[1747605172639,1.4915915,167.66,167.62,42.46732808]
[1747605172838,5.96440831,167.67,167.63,42.46732808]
[1747605172839,7.45590663,167.67,167.63,42.46732808]
[1747605173056,33.45590663,167.67,167.63,42.46732808]
[1747605173219,7.45590663,167.67,167.63,42.46732808]
[1747605173419,1.49149832,167.67,167.62,42.46732808]
[1747605173724,92.40240674,167.68,167.56,26.0]
[1747605174031,92.40240674,167.68,167.62,42.46732808]
[1747605174336,49.93507866,167.68,167.63,42.46732808]
[1747605175124,5.96374854,167.68,167.64,42.46732808]
[1747605175437,5.96374854,167.68,167.58,42.46732808]
[1747605175614,5.96374854,167.68,167.64,27.92883746]
[1747605176526,7.45471568,167.7,167.66,27.92883746]
[1747605176732,5.96331529,167.7,167.67,27.92883746]
[1747605177251,27.49106424,167.71,167.67,27.92883746]
[1747605177934,5.96231814,167.72,167.67,27.92883746]
[1747605178254,5.96231814,167.72,167.64,5.96508086]
[1747605178438,5.96231814,167.72,167.67,27.92883746]
[1747605178641,5.96231814,167.72,167.68,27.92883746]
[1747605179548,5.96231814,167.72,167.67,27.92883746]
[1747605179746,1.49103956,167.73,167.71,27.92883746]
[1747605179934,5.96173188,167.74,167.64,21.29223539]
[1747605180244,7.45172275,167.76,167.72,27.92883746]
[1747605180456,5.96096962,167.76,167.72,27.92883746]
[1747605180949,7.45120631,167.77,167.67,27.92883746]
[1747605181121,5.96061976,167.77,167.68,5.96374045]
[1747605181422,5.96061976,167.77,167.72,27.92883746]
[1747605181626,5.96061976,167.77,167.73,27.92883746]
[1747605181957,5.96061976,167.77,167.68,5.96374045]
[1747605182252,5.96061976,167.77,167.73,27.92883746]
[1747605183529,7.45065718,167.79,167.75,27.92883746]
[1747605183735,5.96016626,167.79,167.76,27.92883746]
[1747605185145,5.96016626,167.79,167.71,5.96267366]
[1747605185447,5.96016626,167.79,167.76,27.92883746]
[1747605186650,7.44980775,167.8,167.77,27.92883746]
[1747605186824,5.9595318,167.8,167.77,27.92883746]
[1747605187026,5.9595318,167.8,167.76,27.92883746]
[1747605187830,5.95912043,167.81,167.73,5.96195627]
[1747605188037,5.95912043,167.81,167.76,27.92883746]
[1747605188239,27.92883746,167.77,167.7,15.08741883]
[1747605188555,27.92883746,167.74,167.7,15.08741883]
[1747605188850,1.49030496,167.77,167.7,15.08741883]
[1747605188851,1.49083596,167.73,167.7,15.08741883]
[1747605189053,1.49075605,167.76,167.7,15.08741883]
[1747605189253,27.92883746,167.75,167.7,15.08741883]
[1747605189440,1.49081099,167.74,167.7,43.01625629]
[1747605189630,5.96196267,167.73,167.7,15.08741883]
[1747605190954,35.38174997,167.73,167.68,27.92883746]
[1747605191134,50.28665666,167.73,167.63,26.0]
[1747605191335,27.92883746,167.72,167.67,27.92883746]
[1747605191553,27.92883746,167.72,167.6,7.6622]
[1747605191554,5.96302921,167.7,167.6,7.6622]
[1747605191731,1.49128055,167.69,167.64,27.92883746]
[1747605191938,1.49128055,167.69,167.6,7.6622]
[1747605191939,1.49128055,167.69,167.6,6.1189]
[1747605192133,1.49128055,167.69,167.64,27.92883746]
[1747605192330,1.49128055,167.69,167.55,20.22744886]
[1747605192331,26.0,167.67,167.55,7.54616404]
[1747605192554,27.92883746,167.63,167.57,27.92883746]
[1747605192857,29.444472,167.62,167.51,15.10482002]
[1747605193429,1.49186094,167.62,167.52,5.96943648]
[1747605193637,27.49192511,167.64,167.52,5.96943648]
[1747605194256,55.44453617,167.64,167.52,5.96943648]
[1747605194561,61.4097657,167.64,167.52,5.96943648]
[1747605195158,33.45715464,167.64,167.52,5.96943648]
[1747605195362,27.95261106,167.63,167.52,5.96943648]
[1747605196258,1.49177648,167.62,167.52,5.96943648]
[1747605196853,35.41023648,167.63,167.52,5.96943648]
[1747605197058,7.45762542,167.63,167.52,5.96943648]
[1747605199064,27.95261106,167.62,167.52,5.96943648]
[1747605199254,1.49195426,167.61,167.52,5.96943648]
[1747605199655,5.96658711,167.6,167.52,5.96943648]
[1747605201439,1.49195252,167.61,167.52,5.96943648]
[1747605202455,5.96658711,167.6,167.52,5.96943648]
[1747605202961,1.49195252,167.61,167.52,5.96943648]
[1747605203147,5.96626898,167.61,167.52,5.96943648]
[1747605203656,29.44448731,167.6,167.51,47.07454447]
[1747605203862,1.49187625,167.6,167.51,47.07454447]
[1747605204777,5.96694313,167.59,167.51,47.07454447]
[1747605205071,5.96666264,167.6,167.51,47.07454447]
[1747605205372,1.49191875,167.62,167.51,61.99902659]
[1747605205556,5.96516344,167.64,167.52,18.64964886]
[1747605205755,5.96516344,167.64,167.53,6.2255]
[1747605206050,38.94,167.66,167.55,18.64964886]
[1747605206368,7.45538874,167.68,167.56,0.41547336]
[1747605206880,35.4079998,167.68,167.57,5.9676553]
[1747605207044,7.45538874,167.68,167.57,5.9676553]
[1747605207361,35.4079998,167.68,167.57,5.9676553]
[1747605207542,35.3884568,167.68,167.62,27.93306806]
[1747605207942,5.96445186,167.66,167.61,27.93306806]
[1747605208980,5.96445186,167.66,167.57,5.9676553]
[1747605209156,5.96445186,167.66,167.61,27.93306806]
[1747605211480,5.96445186,167.66,167.62,27.93306806]
[1747605212483,5.96409614,167.67,167.62,27.93306806]
[1747605213276,5.96409614,167.67,167.63,27.93306806]
[1747605214650,5.96374045,167.68,167.63,27.93306806]
[1747605214878,5.96374045,167.68,167.64,27.93306806]
[1747605215049,5.96374045,167.68,167.62,5.96580095]
[1747605215373,5.96374045,167.68,167.64,27.93306806]
[1747605215772,5.96338481,167.69,167.6,5.96658711]
[1747605215962,5.96338481,167.69,167.64,27.93306806]
[1747605216274,5.96338481,167.69,167.6,5.96658711]
[1747605216478,5.96338481,167.69,167.64,27.93306806]
[1747605217491,5.96311071,167.7,167.61,26.0]
[1747605217653,29.42392717,167.74,167.68,27.93306806]
[1747605217973,29.42392717,167.74,167.62,6.52]
[1747605217974,7.45246635,167.74,167.69,27.93306806]
[1747605218171,5.96131124,167.75,167.71,27.93306806]
[1747605218475,5.96131124,167.75,167.73,27.93306806]
[1747605218679,32.17846294,167.78,167.67,27.93306806]
[1747605218680,4.24539488,167.78,167.74,27.93306806]
[1747605218891,4.24539488,167.78,167.75,27.93306806]
[1747605219182,4.24539488,167.78,167.7,26.0]
[1747605219183,4.24539488,167.78,167.77,27.93306806]
[1747605220551,10.20562405,167.78,167.76,27.93306806]
[1747605220767,4.24539488,167.78,167.76,27.93306806]
[1747605221174,29.42307118,167.82,167.76,27.93306806]
[1747605221584,1.49000312,167.82,167.77,27.93306806]
[1747605221770,26.0,167.84,167.73,26.0]
[1747605221771,1.49005548,167.84,167.73,26.0]
[1747605221972,5.95841029,167.83,167.8,27.93306806]
[1747605222470,5.95841029,167.83,167.76,5.96089202]
[1747605222654,5.95841029,167.83,167.73,26.0]
[1747605222854,27.87747231,167.82,167.73,26.0]
[1747605223061,27.87747231,167.79,167.72,6.52]
[1747605223276,29.36785291,167.78,167.69,5.96336721]
[1747605223657,29.36785291,167.78,167.69,26.0]
[1747605224087,27.87747231,167.76,167.66,22.66085916]
[1747605224263,27.87747231,167.74,167.66,15.09113216]
[1747605224462,7.45281301,167.73,167.66,15.09113216]
[1747605225365,35.33028532,167.73,167.66,15.09113216]
[1747605226062,27.87747231,167.7,167.66,15.09113216]
[1747605226286,1.49126803,167.69,167.66,15.09113216]
[1747605226479,5.96374045,167.68,167.66,15.09113216]
[1747605229292,5.96374045,167.68,167.6,5.96657495]
[1747605229970,5.96374045,167.68,167.59,5.96694313]
[1747605232789,5.96338481,167.69,167.59,5.96694313]
[1747605234697,29.46797231,167.71,167.62,26.0]
[1747605234698,1.49131274,167.71,167.62,26.0]
[1747605234900,29.36840577,167.75,167.63,0.41468281]
[1747605235188,1.49093346,167.75,167.63,0.41468281]
[1747605235371,1.49093346,167.75,167.63,19.06433167]
[1747605235575,1.49062994,167.76,167.63,19.06433167]
[1747605235797,7.45155902,167.76,167.63,19.06433167]
[1747605236697,1.49062994,167.76,167.64,1.5252]
[1747605236996,1.49062994,167.76,167.65,21.29070076]
[1747605237295,33.45073065,167.78,167.65,21.29070076]
[1747605237470,61.32820296,167.78,167.65,21.29070076]
[1747605237660,33.45073065,167.78,167.74,27.89721972]
[1747605239789,27.89721972,167.79,167.74,27.89721972]
[1747605239991,26.0,167.78,167.74,27.89721972]
[1747605240176,26.0,167.78,167.75,27.89721972]
[1747605240388,5.95956777,167.8,167.76,27.89721972]
[1747605241306,1.49033656,167.81,167.76,27.89721972]
[1747605241492,1.49033656,167.81,167.77,27.89721972]
[1747605243210,35.34622903,167.82,167.77,27.89721972]
[1747605244702,35.34622903,167.82,167.71,20.86887411]
[1747605245002,6.3504,167.86,167.79,27.89721972]
[1747605245304,27.89721972,167.85,167.8,27.89721972]
[1747605245682,29.38695465,167.85,167.8,27.89721972]
[1747605247181,35.34492854,167.85,167.8,27.89721972]
[1747605248108,7.44770882,167.85,167.81,27.89721972]
[1747605250196,5.95797389,167.85,167.81,27.89721972]
[1747605251009,27.48968859,167.86,167.82,27.89721972]
[1747605251319,5.95717528,167.87,167.83,27.89721972]
[1747605252524,5.95717528,167.87,167.82,27.89721972]
[1747605252819,33.82371483,167.87,167.78,5.96018595]
[1747605253409,5.95717528,167.87,167.78,5.96018595]
[1747605253596,33.82371483,167.87,167.78,5.96018595]
[1747605254790,5.95717528,167.87,167.78,5.96018595]
[1747605255518,1.48960852,167.88,167.78,20.86065084]
[1747605255690,12.38932898,167.91,167.79,19.06145594]
[1747605255896,10.9,167.91,167.79,19.06145594]
[1747605256215,44.72239467,167.91,167.79,19.06145594]
[1747605257020,44.72239467,167.91,167.8,5.95947556]
[1747605257201,16.85585512,167.91,167.8,20.85816447]
[1747605258789,5.95585512,167.91,167.82,5.95876534]
[1747605263992,5.95628089,167.89,167.81,5.95906773]
[1747605264216,17.40603704,167.88,167.78,18.64964886]
[1747605264527,17.40603704,167.87,167.79,26.0]
[1747605264724,17.40603704,167.88,167.79,26.0]
[1747605265023,24.8515326,167.89,167.79,26.41188158]
[1747605265223,5.95628089,167.89,167.8,5.95947556]
[1747605265523,18.89535013,167.93,167.83,26.0]
[1747605265823,37.97787102,167.94,167.83,26.0]
[1747605266123,17.40603704,167.93,167.83,26.0]
[1747605266326,17.40603704,167.93,167.83,26.41072344]
[1747605266626,11.97787102,167.94,167.83,26.41072344]
[1747605266820,5.95501366,167.93,167.84,31.95805529]
[1747605267022,10.9,167.94,167.85,0.41071749]
[1747605267916,13.79172311,167.95,167.85,19.06036635]
[1747605268116,7.52092311,167.95,167.85,19.06036635]
[1747605268291,16.85370583,167.97,167.89,26.0]
[1747605268497,5.95314075,167.98,167.89,26.0]
[1747605268809,5.95314075,167.98,167.9,5.95592614]
[1747605270309,46.18246358,168.0,167.9,5.95592614]
[1747605270498,33.79314175,168.02,167.92,26.0]
[1747605270699,5.95186613,168.02,167.92,26.0]
[1747605270898,33.79314175,168.02,167.92,26.0]
[1747605271095,5.95186613,168.02,167.92,26.0]
[1747605271400,27.84127562,168.01,167.92,26.0]
[1747605271597,1.48829365,168.0,167.92,26.0]
[1747605271798,27.48829365,168.0,167.88,33.72181393]
[1747605272027,27.84127562,167.96,167.89,26.0]
[1747605272233,27.84127562,167.95,167.89,26.0]
[1747605272605,27.84127562,167.96,167.89,26.0]
[1747605273927,27.84127562,167.94,167.88,15.07216507]
[1747605274245,1.48884647,167.95,167.88,15.07216507]
[1747605274529,5.95450756,167.94,167.88,15.07216507]
[1747605275134,33.79578318,167.94,167.88,15.07216507]
[1747605275297,27.84127562,167.92,167.88,15.07216507]
[1747605275500,1.4892487,167.91,167.88,15.07216507]
[1747605275731,29.33052432,167.91,167.88,15.07216507]
[1747605276026,27.84127562,167.9,167.88,15.07216507]
[1747605276431,5.95628089,167.89,167.88,15.07216507]
[1747605276801,1.48934018,167.9,167.88,15.07216507]
[1747605277000,33.79702753,167.91,167.88,15.07216507]
[1747605278835,29.33054086,167.9,167.88,15.07216507]
[1747605279011,1.48926524,167.9,167.79,18.64964886]
[1747605279218,27.84127562,167.89,167.79,18.64964886]
[1747605279405,27.84127562,167.89,167.79,44.64964886]
[1747605279610,29.33068016,167.88,167.79,31.95983074]
[1747605280721,33.79826614,167.87,167.78,13.69374398]
[1747605281125,5.95699052,167.87,167.78,13.69374398]
[1747605281438,33.79826614,167.87,167.78,13.69374398]
[1747605281852,5.95699052,167.87,167.78,13.69374398]
[1747605282523,7.44610021,167.88,167.78,13.69374398]
[1747605282736,5.95669567,167.88,167.78,13.69374398]
[1747605282928,96.97067842,167.9,167.79,19.06127034]
[1747605283155,41.64,167.9,167.81,26.0]
[1747605283519,31.34,167.93,167.85,26.0]
[1747605283720,33.57563183,167.96,167.86,18.64964886]
[1747605283933,4.24539488,167.96,167.87,0.4103989]
[1747605284139,4.24539488,167.96,167.89,26.0]
[1747605284324,4.24539488,167.96,167.9,19.05933945]
[1747605284531,4.24539488,167.96,167.91,5.95557143]
[1747605285526,5.95241559,168.0,167.91,5.95557143]
[1747605286543,33.79369121,168.0,167.91,5.95557143]
[1747605287335,29.32965027,167.99,167.91,5.95557143]
[1747605287646,27.84127562,167.97,167.9,5.95591322]
[1747605287829,27.84127562,167.95,167.87,21.02930424]
[1747605288148,27.84127562,167.94,167.87,21.02930424]
[1747605288444,27.84127562,167.94,167.87,15.07236298]
[1747605290042,5.95486214,167.93,167.87,15.07236298]
[1747605291358,33.79613776,167.93,167.87,15.07236298]
[1747605291540,27.84127562,167.92,167.87,15.07236298]
[1747605292043,27.84127562,167.93,167.87,15.07236298]
[1747605292617,7.58340756,167.94,167.87,15.07236298]
[1747605292825,27.84127562,167.93,167.87,15.07236298]
[1747605293748,5.95521676,167.92,167.87,15.07236298]
[1747605294320,1.48896328,167.95,167.87,21.02933081]
[1747605294523,5.95415302,167.95,167.87,21.02933081]
[1747605294827,33.79542864,167.95,167.87,21.02933081]
[1747605295576,5.95415302,167.95,167.87,21.02933081]